Cogmind - Beta 10.2 @@@ ROGUE MODE // 2021.02.12 @ 20:49:34 Player: Togure Result: Destroyed by L-31 Rogue with Katana Performance ------------- Evolutions (0) 0 Regions Visited (4) 800 Robots Destroyed (16) 80 Value Destroyed (285) 285 Prototype IDs (0) 0 Alien Tech Used (0) 0 Bonus (7) 7 TOTAL SCORE: 1172 Bonus ------- Follower Combat Kills 7 Cogmind --------- Core Integrity 0/250 Matter 300/300 Energy 100/100 System Corruption 1% Temperature Cool (0) Movement Walking (120) Location -9/Mines Parts ------- > --- POWER (1) -------- (None) > --- PROPULSION (2) --- Aluminum Leg > --- UTILITY (2) ------ Small Storage Unit > --- WEAPON (2) ------- Makeshift Axe > --- INVENTORY (6) ---- Flight Unit Experimental Sensor Array Grenade Launcher Peak State ------------ > --- POWER ------------ Ion Engine > --- PROPULSION ------- Aluminum Leg Aluminum Leg > --- UTILITY ---------- Small Storage Unit Small Matter Pod > --- WEAPON ----------- Heavy EM Pulse Gun Makeshift Axe > --- INVENTORY -------- Flight Unit Grenade Launcher [Rating: 11] Favorites ----------- Power Ion Engine Engine Ion Engine Propulsion Flight Unit Leg Aluminum Leg Flight Unit Flight Unit Utility Small Storage Unit Storage Small Storage Unit Weapon Beam Rifle Energy Gun Beam Rifle Energy Cannon Particle Cannon Launcher Grenade Launcher Slashing Weapon Makeshift Axe Build | -11 -10 -10 -10 -9 ------- Run | Scr Mat Min Exi Min Slots Evolved . | . . . . . Power . | . . . . . Propulsion . | . . . . . Utility . | . . . . . Weapon . | . . . . . Parts Attached 23 | 6 . 10 1 6 Power 4 | 1 . 2 . 1 Engine 4 | 1 . 2 . 1 Core . | . . . . . Reactor . | . . . . . Propulsion 7 | 2 . 3 . 2 Treads . | . . . . . Leg 4 | 2 . . . 2 Wheel . | . . . . . Hover . | . . . . . Flight 3 | . . 3 . . Utility 2 | 1 . . . 1 Device . | . . . . . Storage 2 | 1 . . . 1 Processor . | . . . . . Hackware . | . . . . . Protection . | . . . . . Artifact . | . . . . . Weapon 10 | 2 . 5 1 2 Energy Gun 6 | 2 . 3 . 1 Energy Cannon 2 | . . 2 . . Ballistic Gun . | . . . . . Ballistic Cannon . | . . . . . Launcher 1 | . . . 1 . Special Weapon . | . . . . . Impact Weapon . | . . . . . Slashing Weapon 1 | . . . . 1 Piercing Weapon . | . . . . . Special Melee Weapon . | . . . . . Unidentified Prototypes . | . . . . . Parts Lost 13 | . . 6 . 7 Power 3 | . . 1 . 2 Propulsion 4 | . . 2 . 2 Utility 1 | . . . . 1 Weapon 5 | . . 3 . 2 Highest Loss Streak 5 | . . 5 . 4 Average Slot Usage (%) 85 | . 85 76 85 95 Engine 13 | . 14 13 14 12 Leg 12 | . 28 14 . 25 Flight 14 | . . 9 28 1 Storage 17 | . 14 14 14 26 Energy Gun 14 | . 28 16 14 6 Energy Cannon 1 | . . 6 . . Launcher 7 | . . . 13 7 Slashing Weapon 3 | . . . . 14 Naked Turns . | . . . . . Heaviest Build 16 | 12 12 15 15 16 Greatest Support 20 | 20 20 20 8 20 Greatest Overweight (x) 4 | . . 4 1 2 Average Overweight (x) . | . . . 1 . Largest Inventory Capacity 6 | 6 6 6 6 6 Average Capacity 5 | 5 6 6 6 6 Most Carried 6 | 4 6 6 3 3 Average Carried 2 | 1 4 4 1 1 Final Capacity 6 | 6 6 6 6 6 Final Carried 6 | 2 6 2 2 3 Class Distribution -------------------- 75% | Mutant 24% | Scavenger-Mutant Dominant Class ---------------- Mutant | -10/Materials Mutant | -10/Mines Mutant | -10/Exiles Scavenger-Mutant | -9/Mines Resources | -11 -10 -10 -10 -9 ----------- Run | Scr Mat Min Exi Min Matter Collected 485 | 260 . 70 58 97 Remotely . | . . . . . Salvage Created 476 | . . 192 61 223 Parts 28 | . . 19 3 6 Haulers Intercepted . | . . . . . Recyclers Shooed 1 | . . . . 1 Parts Field Recycled . | . . . . . Retrieved Matter . | . . . . . Parts Self-Destructed . | . . . . . Prevented . | . . . . . Kills | -11 -10 -10 -10 -9 ------- Run | Scr Mat Min Exi Min Combat Hostiles Destroyed 12 | . . 8 1 3 Melee 4 | . . 1 . 3 Guns 6 | . . 5 1 . Cannons 2 | . . 2 . . Classes Destroyed 4 | . . 3 . 1 Worker 3 | . . 1 . 2 Recycler 1 | . . . . 1 Swarmer 7 | . . 6 . 1 Grunt 5 | . . 2 1 2 Best Kill Streak 3 | . . 3 1 2 Combat Bots Only 3 | . . 3 1 2 Max Kills in Single Turn 1 | . . 1 1 1 Gunslinging . | . . . . . Exploded . | . . . . . Melee 1 | . . 1 . 1 Uniques/NPCs Destroyed . | . . . . . Combat | -11 -10 -10 -10 -9 -------- Run | Scr Mat Min Exi Min Damage Taken 1273 | . 31 661 36 545 Core 272 | . . 145 3 124 Absorbed by Shields . | . . . . . Core Remaining (%) 100 | 100 . . . . Volleys Fired 44 | . . 27 7 10 Largest 2 | . . 2 1 1 Hottest 136 | . . 136 56 56 Shots Fired 63 | . . 46 7 10 Gun 34 | . . 23 1 10 Cannon 23 | . . 23 . . Launcher 6 | . . . 6 . Special . | . . . . . Kinetic . | . . . . . Thermal 50 | . . 46 1 3 Explosive 6 | . . . 6 . Electromagnetic 7 | . . . . 7 Robot Hit Streak 7 | . . 7 2 4 Robot Miss Streak 7 | . . 7 . 3 Penetration Max . | . . . . . Secondary Targets 1 | . . 1 . . Max Gunslinging Chain 1 | . . 1 . . Shots Hit Robots 46 | . . 21 2 23 Core Hits 32 | . . 16 10 6 Critical Hits . | . . . . . Critical Kills . | . . . . . Critical Parts Destroyed . | . . . . . Melee Attacks 24 | . . . . 24 Impact . | . . . . . Slashing 24 | . . . . 24 Piercing . | . . . . . Sneak Attacks 6 | . . . . 6 Combat Hostiles . | . . . . . Follow-up Attacks . | . . . . . Damage Inflicted 1957 | . 1 417 333 1206 Guns 357 | . . 240 14 103 Cannons 142 | . . 142 . . Explosions 319 | . . . 319 . Melee 1103 | . . . . 1103 Ramming 36 | . 1 35 . . Kinetic . | . . . . . Thermal 424 | . . 382 14 28 Explosive 319 | . . . 319 . Electromagnetic 75 | . . . . 75 Impact . | . . . . . Slashing 1103 | . . . . 1103 Piercing . | . . . . . Highest Corruption 1 | . . 1 1 1 Average Corruption 1 | . . 1 1 1 Corruption Purged . | . . . . . Effects 5 | . . . 3 2 Message Errors 2 | . . . 2 . Energy Discharges 2 | . . . 1 1 Data Loss (minor) 1 | . . . . 1 Overload Shots . | . . . . . Overflow Damage 451 | . . . 21 430 Projectiles . | . . . . . Explosions 21 | . . . 21 . Melee 430 | . . . . 430 Knockbacks . | . . . . . Impact . | . . . . . Kinetic . | . . . . . Secondary . | . . . . . Self-Inflicted Damage 53 | . . 15 38 . Shots 2 | . . . 2 . Rammed 12 | . 1 11 . . Targets Rammed 12 | . 1 11 . . Kicked . | . . . . . Crushed . | . . . . . Highest Temperature 489 | . . 489 20 95 Average Temperature 159 | . . 189 11 30 Received Heat Transfer 249 | . . 102 . 147 Effects 6 | . . 6 . . Shutdowns 2 | . . 2 . . Energy Bleed 1 | . . 1 . . Interference 3 | . . 3 . . Siege Activations . | . . . . . Robots Corrupted . | . . . . . Combat Hostiles . | . . . . . Parts Fried . | . . . . . Impact Corruptions . | . . . . . Robots Melted . | . . . . . Combat Hostiles . | . . . . . Parts Melted 1 | . . 1 . . Heat Transferred 1001 | . . 890 37 74 Parts Sabotaged . | . . . . . Parts Stolen . | . . . . . Parts Stripped . | . . . . . Power Chain Reactions . | . . . . . Missiles Intercepted . | . . . . . Alert | -11 -10 -10 -10 -9 ------- Run | Scr Mat Min Exi Min Peak Influence 176 | . 30 176 . 128 Initial 11 | . . 11 . . Average 61 | . 17 92 . 50 Maximum Alert Level . | . . . . . Low Security (%) 100 | 100 100 100 . 100 Level 1 . | . . . . . Level 2 . | . . . . . Level 3 . | . . . . . Level 4 . | . . . . . Level 5 . | . . . . . High Security . | . . . . . Max Security . | . . . . . Squads Dispatched . | . . . . . Investigation . | . . . . . Extermination . | . . . . . Reinforcement . | . . . . . Assault . | . . . . . Garrison . | . . . . . Intercept . | . . . . . Construction Impeded . | . . . . . Haulers Reinforced . | . . . . . Stealth | -11 -10 -10 -10 -9 --------- Run | Scr Mat Min Exi Min Distress Signals . | . . . . . Communications Jammed . | . . . . . Distress Signals . | . . . . . Times Spotted 22 | . 6 8 . 8 Peak Tracking Total 5 | . 5 3 . 3 Tactical Retreats 1 | . . . . 1 Traps | -11 -10 -10 -10 -9 ------- Run | Scr Mat Min Exi Min Traps Triggered . | . . . . . Indirectly . | . . . . . Trap Hack Attempts . | . . . . . Triggered . | . . . . . Disarmed . | . . . . . Reprogrammed . | . . . . . Reused . | . . . . . Traps Extracted . | . . . . . Installed . | . . . . . Triggered . | . . . . . Machines | -11 -10 -10 -10 -9 ---------- Run | Scr Mat Min Exi Min Machines Disabled 1 | . . . . 1 Max in Single Turn 1 | . . . . 1 Machines Sabotaged . | . . . . . Garrisons Compromised . | . . . . . Overloaded Fab Kills . | . . . . . Fab Network Shutdowns . | . . . . . Hacking | -11 -10 -10 -10 -9 --------- Run | Scr Mat Min Exi Min Machines Accessed 2 | . . . 2 . Terminals . | . . . . . Fabricators . | . . . . . Repair Stations . | . . . . . Recycling Units . | . . . . . Scanalyzers . | . . . . . Garrison Access . | . . . . . Total Hacks 4 | . . . 4 . Successful 4 | . . . 4 . Failed . | . . . . . Catastrophic . | . . . . . Database Lockouts . | . . . . . Manual . | . . . . . Terminals . | . . . . . Fabricators . | . . . . . Repair Stations . | . . . . . Recycling Units . | . . . . . Scanalyzers . | . . . . . Garrison Access . | . . . . . Terminal Hacks 4 | . . . 4 . Record 4 | . . . 4 . Fabricator Hacks . | . . . . . Repair Station Hacks . | . . . . . Recycling Unit Hacks . | . . . . . Scanalyzer . | . . . . . Garrison Access Hacks . | . . . . . Unauthorized Hacks . | . . . . . Terminals . | . . . . . Fabricators . | . . . . . Repair Stations . | . . . . . Recycling Units . | . . . . . Scanalyzers . | . . . . . Garrison Access . | . . . . . Data Cores Recovered . | . . . . . Used . | . . . . . Hacking Detections . | . . . . . Full Trace Events . | . . . . . Feedback Events . | . . . . . Feedback Blocked . | . . . . . Robot Schematics Acquired . | . . . . . Robots Built . | . . . . . Matter . | . . . . . Time . | . . . . . Total Robot Build Rating . | . . . . . Part Schematics Acquired . | . . . . . Parts Built . | . . . . . Matter . | . . . . . Time . | . . . . . Total Part Build Rating . | . . . . . Parts Repaired . | . . . . . Time . | . . . . . Parts Recycled . | . . . . . Recycled Matter . | . . . . . Retrieved Matter . | . . . . . Retrieved Components . | . . . . . Parts Scanalyzed . | . . . . . Part Schematics Acquired . | . . . . . Parts Damaged . | . . . . . Bothacking | -11 -10 -10 -10 -9 ------------ Run | Scr Mat Min Exi Min Used RIF Installer . | . . . . . Robots Hacked . | . . . . . Non-combat . | . . . . . Combat . | . . . . . Robot Hacks Applied . | . . . . . Relay Couplers Released . | . . . . . Robots Rewired . | . . . . . Allies Hacked . | . . . . . Hacks Repelled . | . . . . . Allies | -11 -10 -10 -10 -9 -------- Run | Scr Mat Min Exi Min Total Allies 3 | . . . . 3 Largest Group 3 | . . . . 3 Highest-Rated Group 40 | . . . . 40 Highest-Rated Ally 16 | . . . . 16 Total Orders . | . . . . . Ally Attacks 14 | . . . . 14 Total Damage 154 | . . . . 154 Kills 1 | . . . . 1 Allies Corrupted . | . . . . . Allies Melted . | . . . . . Intel | -11 -10 -10 -10 -9 ------- Run | Scr Mat Min Exi Min Robot Analysis Total . | . . . . . Derelict Logs Recovered 2 | . . 2 . . Drone Launches . | . . . . . Drone Recoveries . | . . . . . Exploration | -11 -10 -10 -10 -9 ------------- Run | Scr Mat Min Exi Min Turns Passed 1917 | 48 148 469 745 507 Spaces Moved 1403 | 35 119 286 619 344 Core 30 | 11 . 19 . . Treads . | . . . . . Legs 607 | 24 119 131 . 333 Wheels . | . . . . . Hover . | . . . . . Flight 766 | . . 136 619 11 Fastest Speed 50 | 50 120 100 117 117 Average Speed 118 | 98 120 119 117 122 Slowest Speed 250 | 120 120 250 117 200 Overloaded Moves . | . . . . . Propulsion Burnouts . | . . . . . Robots Hopped . | . . . . . Cave-ins Triggered . | . . . . . Exploration Rate (%) 50 | 3 31 64 91 62 Regions Visited 4 Branch Regions 3 Pre-discovered Areas 2 | . . . 1 1 Known Exits Taken . | . . . . . Unknown Exits Taken 4 | 1 1 1 1 . Scrap Searched 2 | . . 1 . 1 Spaces Dug 4 | . . . 4 . Terrain Destroyed 23 | . . . 23 . Melee . | . . . . . Projectile . | . . . . . AOE 23 | . . . 23 . Terrain Rammed . | . . . . . Walls Destroyed . | . . . . . Machines Disabled . | . . . . . Actions | -11 -10 -10 -10 -9 --------- Run | Scr Mat Min Exi Min Total 1568 | 48 125 365 633 397 Wait 26 | . . 22 . 4 Move 1399 | 34 118 285 618 344 Hop . | . . . . . Pick Up 28 | 8 5 6 2 7 Fast Attach . | . . . . . Attach 16 | 6 . 6 . 4 Detach . | . . . . . Swap 7 | . . 4 1 2 Drop 9 | . 1 4 2 2 Fire 44 | . . 27 7 10 Melee 24 | . . . . 24 Ram 10 | . . 10 . . Kick 2 | . 1 1 . . Crush . | . . . . . Escape Stasis . | . . . . . Rewire 3 | . . . 3 . Trap . | . . . . . Miscellaneous . | . . . . . Route ------- -11/Scrapyard -10/Materials -10/Mines -10/Exiles (discovered 2 exits: [*Min x2]) -9/Mines (discovered 1 exit: [*Mat]) History --------- Turn | Location | Event 3 | -11/Scrapyard | Discovered new exit (range 15) 49 | -11/Scrapyard | Entered Materials 191 | -10/Materials | Discovered new exit (range 6) 197 | -10/Materials | Entered Mines 314 | -10/Mines | Build established: Mutant 374 | -10/Mines | Learned Materials trap positions 483 | -10/Mines | Core integrity fell below 50% 507 | -10/Mines | Lost 5 parts (1p2n2w) 662 | -10/Mines | Deemed a non-threat by the Exiles lab entrance 662 | -10/Mines | Discovered new exit (range 5) 666 | -10/Mines | Entered Exiles 666 | -10/Exiles | Found Exiles lab destroyed 682 | -10/Exiles | Discovered new exit (range 15) 778 | -10/Exiles | Learned location of Zion (-6) 1074 | -10/Exiles | Discovered new exit (range 14) 1411 | -10/Exiles | Entered Mines 1454 | -9/Mines | Lost 3 parts (1p1n1w) 1513 | -9/Mines | Discovered new exit (range 5) 1644 | -9/Mines | Assisted by bots powering up and referring to "LRC-V3" 1703 | -9/Mines | Learned location of Storage (-7) 1722 | -9/Mines | Core integrity fell below 20% 1751 | -9/Mines | Build established: Scavenger-Mutant 1797 | -9/Mines | Found a damaged Exp. Sensor Array with a note attached 1799 | -9/Mines | Found Prototype Device 1918 | -9/Mines | Destroyed by L-31 Rogue with Katana Last Messages --------------- note attached: "Everyone keeps telling us we should avoid high-traffic areas because that's where patrols are more likely to show up, but that doesn't do us much good if we can't spot those areas until they're on top of us... With this we can! Deliver it to Megawrench for repairs then we'll never be afraid of an ambush while sneaking around Materials again, ha." 01799_ Acquired Prototype Device. 01863_ System corrupted: Energy discharge (-97). 01892_ Mercenary 2a destroyed. 01894_ Trooper 2a destroyed. 01895_ K-01 Serf collects debris. 01896_ Core Extractor disabled. 01899_ Trooper 2b destroyed. 01902_ K-01 Serf collects debris. 01909_ Ion Engine destroyed. 01910_ K-01 Serf collects debris. 01910_ Hvy. EM Pulse Gun destroyed. 01913_ Sml. Matter Pod destroyed. 01914_ K-01 Serf collects debris. 01915_ Aluminum Leg destroyed. Map ----- +----------------------------------------------------+ | | | | | | | | | | | | | | | ?????????????????????????????????????????????????? | | ?????????????????????????????????????????????????? | | ?????????????????????????????????????????????????# | | ?????????????????????????????????????????????????# | | ?????????????????????????????????????????????????# | | ?????????????????????????????????????????????????# | | ???????????????????????????????????????#########?# | | ????????????#??????????????????????????# #?# | | ????????????# ## ???????????????????# % #?# | | ????????????# ########?????????# #?# | | ???????? #?????????# #?# | | ???????? ## ####=## #####?????##### ###?? | | ????????????????????????#=## ##????????# #???? | | ???????????????##########%#### #????????# #?### | | ???????????????# *%*[#?# #????????# #?# | | ???????????????# %[#?# #????????# #?# # | | ???????????????# kg #?# #????????# #?# # | | ???????????????# l #?# #????????# #?# # | | ???????????????# @ #?## #????????# ### # | | ???????????????# """ " " #??## #????????# | | ???????????????# """ """ #???# #????????# | | ???????????????#?""" """ #???# #????????###### | | ?????????????????###########???# #?????????????# | | ???????????????????????????????# #########?????# | | ???????????????????????????????# #?????# | | ???????????????????????????????# #?????# | | ???????????????????????????????######### #?????# | | ???????????????????????????????????????# #?????# | | ???????????????????????????????????????# #?????# | | ???????????????????????????????????????# #?????# | | ???????????????????????????????????????# #?????# | | ???????????????????????????????????????# #?????# | | ???????????????????????????????????????# #?????# | | ???????????????????????????????????????# #?????# | | ???????????????????????????????????????# #?????# | | ???????????????????????????????????????# #?????# | | ???????????????????????????????????????# #?????## | | ???????????????????????????????????????# #??????? | | ??????????????????????????????????????## #??????? | | ??????????????????????????????????????# #??????? | | ??????????????????????????????????????# ###????? | | ??????????????????????????????????????# ##???? | | ??????????????????????????????????????# #???? | +----------------------------------------------------+ Best States ------------- Heat Dissipation 25 Energy Generation 10 Energy Capacity 250 Matter Stores 350 Matter Capacity 350 Sight Range 16 Terrain Scan Density 10 Evasion (%) 40 Item Schematics ----------------- None Robot Schematics ------------------ None Fabricated ------------ Nothing Alien Tech Used ----------------- None Achievements -------------- None Challenges ------------ None Game ------ Seed EnergyBiometalTearclaws Manual? 0 Play Time 00:22:22 Cumulative 16.5 hours Start 2021.02.11 @ 15:54:23 End 2021.02.12 @ 20:49:34 Sessions 7 Manual Loads 0 Difficulty Rogue Special Mode None Game No. 40 Rogue 40 Adventurer 0 Explorer 0 Win Type - Total 0 Types 0/0/0/0/0/0/0/0/0 Lore% 18 Gallery% 18 Achievement% 14 Wizard Run 0 Options --------- ASCII 0 Keyboard 0 Movement Numpad Keybinds 0 Fullscreen 1 Font 24/Smallcaps Map View 76x50 Tactical HUD 1 Map Filters NONE Filters NONE Steam 1 RUN: f4dc0628-cb46-4bd0-ac1e-32e65cadb1a6